[Event "Titled Tuesday Blitz August 16 Late 2022"]
[White "Salem, A.R. Saleh"]
[Black "Kim, Sergey"]
[WhiteFideId "9301348"]
[BlackFideId "13700570"]
[WhiteElo "2674"]
[BlackElo "2610"]
[Result "1-0"]
[Round "02"]
[TimeControl "180+1"]
[Date "2022.08.16"]
[WhiteClock "0:00:10"]
[BlackClock "0:00:41"]

1. d4 {[%clk 0:03:00]}  Nf6 {[%clk 0:02:59]} 2. c4 {[%clk 0:03:01]}  g6 {[%clk 0:02:59]} 3. Nc3 {[%clk 0:03:02]}  Bg7 {[%clk 0:02:59]} 4. e4 {[%clk 0:03:03]}  d6 {[%clk 0:03:00]} 5. h3 {[%clk 0:03:03]}  O-O {[%clk 0:03:00]} 6. Be3 {[%clk 0:03:02]}  e5 {[%clk 0:03:00]} 7. d5 {[%clk 0:03:02]}  a5 {[%clk 0:03:00]} 8. Bd3 {[%clk 0:03:02]}  Na6 {[%clk 0:03:00]} 9. Nge2 {[%clk 0:03:03]}  Nc5 {[%clk 0:03:00]} 10. Bc2 {[%clk 0:03:03]}  Bd7 {[%clk 0:02:53]} 11. Qd2 {[%clk 0:03:03]}  a4 {[%clk 0:02:51]} 12. g4 {[%clk 0:03:00]}  Ne8 {[%clk 0:02:50]} 13. Ng3 {[%clk 0:03:00]}  c6 {[%clk 0:02:47]} 14. g5 {[%clk 0:02:48]}  Nc7 {[%clk 0:02:39]} 15. h4 {[%clk 0:02:43]}  cxd5 {[%clk 0:02:38]} 16. exd5 {[%clk 0:02:37]}  b5 {[%clk 0:02:33]} 17. h5 {[%clk 0:02:17]}  bxc4 {[%clk 0:02:28]} 18. Bxc5 {[%clk 0:02:04]}  dxc5 {[%clk 0:02:27]} 19. Nce4 {[%clk 0:02:05]}  Nb5 {[%clk 0:02:17]} 20. f3 {[%clk 0:01:07]}  Nd4 {[%clk 0:02:16]} 21. Bd1 {[%clk 0:00:53]}  Bf5 {[%clk 0:01:58]} 22. Nxf5 {[%clk 0:00:30]}  gxf5 {[%clk 0:01:52]} 23. Nc3 {[%clk 0:00:21]}  h6 {[%clk 0:01:42]} 24. gxh6 {[%clk 0:00:20]}  Bf6 {[%clk 0:01:42]} 25. Be2 {[%clk 0:00:20]}  Kh8 {[%clk 0:01:37]} 26. f4 {[%clk 0:00:12]}  Rg8 {[%clk 0:01:31]} 27. O-O-O {[%clk 0:00:12]}  a3 {[%clk 0:01:26]} 28. Bxc4 {[%clk 0:00:11]}  axb2+ {[%clk 0:01:25]} 29. Kb1 {[%clk 0:00:12]}  Qa5 {[%clk 0:01:18]} 30. Rhg1 {[%clk 0:00:12]}  e4 {[%clk 0:01:10]} 31. Rxg8+ {[%clk 0:00:11]}  Rxg8 {[%clk 0:01:09]} 32. Nxe4 {[%clk 0:00:11]}  Qxd2 {[%clk 0:01:02]} 33. Nxd2 {[%clk 0:00:12]}  Rb8 {[%clk 0:00:55]} 34. Nb3 {[%clk 0:00:12]}  Kh7 {[%clk 0:00:50]} 35. d6 {[%clk 0:00:13]}  Kxh6 {[%clk 0:00:50]} 36. Bxf7 {[%clk 0:00:12]}  Rd8 {[%clk 0:00:47]} 37. Nxc5 {[%clk 0:00:12]}  Rxd6 {[%clk 0:00:47]} 38. a4 {[%clk 0:00:12]}  Rc6 {[%clk 0:00:45]} 39. Nd7 {[%clk 0:00:10]}  Bg7 {[%clk 0:00:43]} 40. Ne5 {[%clk 0:00:10]}  Ra6 {[%clk 0:00:41]} 41. Rxd4 {[%clk 0:00:10]} 1-0


[Site "https://www.chess.com"]

[Event "Titled Tuesday Blitz August 16 Late 2022"]
[White "Senthil Maran K"]
[Black "Curtis, John"]
[WhiteFideId "25035681"]
[BlackFideId "3200256"]
[WhiteElo "2124"]
[BlackElo "2203"]
[Result "1/2-1/2"]
[Round "02"]
[TimeControl "180+1"]
[Date "2022.08.18"]
[WhiteClock "0:00:00"]
[BlackClock "0:00:00"]

1. c4 {[%clk 0:00:00]}  c5 {[%clk 0:00:00]} 2. g3 {[%clk 0:00:00]}  Nc6 {[%clk 0:00:00]} 3. Bg2 {[%clk 0:00:00]}  g6 {[%clk 0:00:00]} 4. Nf3 {[%clk 0:00:00]}  Bg7 {[%clk 0:00:00]} 5. O-O {[%clk 0:00:00]}  e5 {[%clk 0:00:00]} 6. Nc3 {[%clk 0:00:00]}  Nge7 {[%clk 0:00:00]} 7. d3 {[%clk 0:00:00]}  d6 {[%clk 0:00:00]} 8. Rb1 {[%clk 0:00:00]}  O-O {[%clk 0:00:00]} 9. a3 {[%clk 0:00:00]}  a5 {[%clk 0:00:00]} 10. Bg5 {[%clk 0:00:00]}  f6 {[%clk 0:00:00]} 11. Be3 {[%clk 0:00:00]}  Nf5 {[%clk 0:00:00]} 12. Nd2 {[%clk 0:00:00]}  Nxe3 {[%clk 0:00:00]} 13. fxe3 {[%clk 0:00:00]}  Bh6 {[%clk 0:00:00]} 14. Nd5 {[%clk 0:00:00]}  Ne7 {[%clk 0:00:00]} 15. b4 {[%clk 0:00:00]}  axb4 {[%clk 0:00:00]} 16. axb4 {[%clk 0:00:00]}  Nxd5 {[%clk 0:00:00]} 17. Bxd5+ {[%clk 0:00:00]}  Kh8 {[%clk 0:00:00]} 18. e4 {[%clk 0:00:00]}  cxb4 {[%clk 0:00:00]} 19. Rxb4 {[%clk 0:00:00]}  Bh3 {[%clk 0:00:00]} 20. Rf3 {[%clk 0:00:00]}  Qa5 {[%clk 0:00:00]} 21. Rb2 {[%clk 0:00:00]}  Qc5+ {[%clk 0:00:00]} 22. Kh1 {[%clk 0:00:00]}  Bxd2 {[%clk 0:00:00]} 23. Rxd2 {[%clk 0:00:00]}  Qb4 {[%clk 0:00:00]} 24. Rc2 {[%clk 0:00:00]}  Qb3 {[%clk 0:00:00]} 25. Rc1 {[%clk 0:00:00]}  Qxd1+ {[%clk 0:00:00]} 26. Rxd1 {[%clk 0:00:00]}  Ra2 {[%clk 0:00:00]} 27. Rf2 {[%clk 0:00:00]}  Rfa8 {[%clk 0:00:00]} 28. Rg1 {[%clk 0:00:00]}  Ra1 {[%clk 0:00:00]} 29. Rf3 {[%clk 0:00:00]}  Rxg1+ {[%clk 0:00:00]} 30. Kxg1 {[%clk 0:00:00]}  Ra1+ {[%clk 0:00:00]} 31. Kf2 {[%clk 0:00:00]}  b6 {[%clk 0:00:00]} 32. Ke3 {[%clk 0:00:00]}  Kg7 {[%clk 0:00:00]} 33. Rf2 {[%clk 0:00:00]}  h5 {[%clk 0:00:00]} 34. Kd2 {[%clk 0:00:00]}  Ra2+ {[%clk 0:00:00]} 35. Kc3 {[%clk 0:00:00]}  Ra1 {[%clk 0:00:00]} 36. Kb4 {[%clk 0:00:00]}  Rb1+ {[%clk 0:00:00]} 37. Ka4 {[%clk 0:00:00]}  Rb2 {[%clk 0:00:00]} 38. Ka3 {[%clk 0:00:00]}  Rb1 {[%clk 0:00:00]} 39. Ka2 {[%clk 0:00:00]}  Rb4 {[%clk 0:00:00]} 40. e3 {[%clk 0:00:00]}  f5 {[%clk 0:00:00]} 41. Rb2 {[%clk 0:00:00]}  Rxb2+ {[%clk 0:00:00]} 42. Kxb2 {[%clk 0:00:00]}  Kf6 {[%clk 0:00:00]} 43. Kc3 {[%clk 0:00:00]}  Ke7 {[%clk 0:00:00]} 44. Kb4 {[%clk 0:00:00]}  Kd7 {[%clk 0:00:00]} 45. Bf7 {[%clk 0:00:00]}  fxe4 {[%clk 0:00:00]} 46. dxe4 {[%clk 0:00:00]}  g5 {[%clk 0:00:00]} 47. Bxh5 {[%clk 0:00:00]}  Kc7 {[%clk 0:00:00]} 48. Bg6 {[%clk 0:00:00]}  Kc6 {[%clk 0:00:00]} 49. Bf5 {[%clk 0:00:00]}  g4 {[%clk 0:00:00]} 50. Be6 {[%clk 0:00:00]}  Kc7 {[%clk 0:00:00]} 51. Kb5 {[%clk 0:00:00]}  Kb7 {[%clk 0:00:00]} 52. Bf5 {[%clk 0:00:00]}  Kc7 {[%clk 0:00:00]} 53. Be6 {[%clk 0:00:00]}  Kb7 {[%clk 0:00:00]} 54. Bd5+ {[%clk 0:00:00]}  Kc7 {[%clk 0:00:00]} 55. Be6 {[%clk 0:00:00]} 1/2-1/2


[Site "https://www.chess.com"]

[Event "Titled Tuesday Blitz August 16 Late 2022"]
[White "Sjugirov, Sanan"]
[Black "Aldokhin, Ivan"]
[WhiteFideId "4189302"]
[BlackFideId "24115720"]
[WhiteElo "2609"]
[BlackElo "2246"]
[Result "0-1"]
[Round "02"]
[TimeControl "180+1"]
[Date "2022.08.16"]
[WhiteClock "0:00:04"]
[BlackClock "0:00:09"]

1. d4 {[%clk 0:03:00]}  Nf6 {[%clk 0:02:59]} 2. Bg5 {[%clk 0:03:00]}  g6 {[%clk 0:02:58]} 3. Nd2 {[%clk 0:02:59]}  d5 {[%clk 0:02:53]} 4. e3 {[%clk 0:02:58]}  Bg7 {[%clk 0:02:52]} 5. Bd3 {[%clk 0:02:54]}  O-O {[%clk 0:02:51]} 6. c3 {[%clk 0:02:50]}  c5 {[%clk 0:02:49]} 7. Ngf3 {[%clk 0:02:42]}  Nc6 {[%clk 0:02:46]} 8. h3 {[%clk 0:02:29]}  Qb6 {[%clk 0:02:41]} 9. Rb1 {[%clk 0:02:27]}  Nd7 {[%clk 0:02:36]} 10. b4 {[%clk 0:01:54]}  cxb4 {[%clk 0:02:00]} 11. cxb4 {[%clk 0:01:53]}  f6 {[%clk 0:01:50]} 12. Bh4 {[%clk 0:01:36]}  Nxb4 {[%clk 0:01:19]} 13. O-O {[%clk 0:01:12]}  Qd6 {[%clk 0:01:05]} 14. Bg3 {[%clk 0:01:09]}  e5 {[%clk 0:01:05]} 15. Bb5 {[%clk 0:00:57]}  Nc6 {[%clk 0:01:01]} 16. e4 {[%clk 0:00:57]}  Nb6 {[%clk 0:00:50]} 17. exd5 {[%clk 0:00:52]}  Qxd5 {[%clk 0:00:45]} 18. dxe5 {[%clk 0:00:40]}  Nxe5 {[%clk 0:00:38]} 19. Nxe5 {[%clk 0:00:25]}  fxe5 {[%clk 0:00:39]} 20. Nf3 {[%clk 0:00:15]}  Qxd1 {[%clk 0:00:32]} 21. Rfxd1 {[%clk 0:00:16]}  Bf5 {[%clk 0:00:27]} 22. Rbc1 {[%clk 0:00:15]}  e4 {[%clk 0:00:22]} 23. Nd4 {[%clk 0:00:14]}  Rad8 {[%clk 0:00:17]} 24. Nxf5 {[%clk 0:00:13]}  gxf5 {[%clk 0:00:18]} 25. Bh4 {[%clk 0:00:04]}  Rxd1+ {[%clk 0:00:13]} 26. Rxd1 {[%clk 0:00:05]}  Bf6 {[%clk 0:00:13]} 27. Bg3 {[%clk 0:00:04]}  Bg5 {[%clk 0:00:09]} 0-1


[Site "https://www.chess.com"]

[Event "Titled Tuesday Blitz August 16 Late 2022"]
[White "Sokolovsky, Yahli"]
[Black "Zenin, Dmitry"]
[WhiteFideId "2820242"]
[BlackFideId "4127897"]
[WhiteElo "1867"]
[BlackElo "2215"]
[Result "1-0"]
[Round "02"]
[TimeControl "180+1"]
[Date "2022.08.18"]
[WhiteClock "0:00:00"]
[BlackClock "0:00:00"]

1. b3 {[%clk 0:00:00]}  e5 {[%clk 0:00:00]} 2. Bb2 {[%clk 0:00:00]}  Nc6 {[%clk 0:00:00]} 3. e3 {[%clk 0:00:00]}  Nf6 {[%clk 0:00:00]} 4. Nf3 {[%clk 0:00:00]}  e4 {[%clk 0:00:00]} 5. Nd4 {[%clk 0:00:00]}  d5 {[%clk 0:00:00]} 6. c4 {[%clk 0:00:00]}  Nxd4 {[%clk 0:00:00]} 7. Bxd4 {[%clk 0:00:00]}  Be6 {[%clk 0:00:00]} 8. Nc3 {[%clk 0:00:00]}  dxc4 {[%clk 0:00:00]} 9. Bxc4 {[%clk 0:00:00]}  Bxc4 {[%clk 0:00:00]} 10. bxc4 {[%clk 0:00:00]}  Be7 {[%clk 0:00:00]} 11. Rb1 {[%clk 0:00:00]}  b6 {[%clk 0:00:00]} 12. Bxf6 {[%clk 0:00:00]}  Bxf6 {[%clk 0:00:00]} 13. Nxe4 {[%clk 0:00:00]}  O-O {[%clk 0:00:00]} 14. Nxf6+ {[%clk 0:00:00]}  Qxf6 {[%clk 0:00:00]} 15. O-O {[%clk 0:00:00]}  c5 {[%clk 0:00:00]} 16. d4 {[%clk 0:00:00]}  cxd4 {[%clk 0:00:00]} 17. Qxd4 {[%clk 0:00:00]}  Qxd4 {[%clk 0:00:00]} 18. exd4 {[%clk 0:00:00]}  Rfd8 {[%clk 0:00:00]} 19. Rfd1 {[%clk 0:00:00]}  Rac8 {[%clk 0:00:00]} 20. Rbc1 {[%clk 0:00:00]}  Kf8 {[%clk 0:00:00]} 21. Kf1 {[%clk 0:00:00]}  Rc6 {[%clk 0:00:00]} 22. Ke2 {[%clk 0:00:00]}  Rg6 {[%clk 0:00:00]} 23. g3 {[%clk 0:00:00]}  h5 {[%clk 0:00:00]} 24. h4 {[%clk 0:00:00]}  Ke7 {[%clk 0:00:00]} 25. Kd3 {[%clk 0:00:00]}  Rgd6 {[%clk 0:00:00]} 26. Kc3 {[%clk 0:00:00]}  Kf6 {[%clk 0:00:00]} 27. Rd3 {[%clk 0:00:00]}  R8d7 {[%clk 0:00:00]} 28. Re1 {[%clk 0:00:00]}  g6 {[%clk 0:00:00]} 29. Re8 {[%clk 0:00:00]}  Kf5 {[%clk 0:00:00]} 30. Rf3+ {[%clk 0:00:00]}  Kg4 {[%clk 0:00:00]} 31. Rf4+ {[%clk 0:00:00]}  Kh3 {[%clk 0:00:00]} 32. Rf8 {[%clk 0:00:00]}  f5 {[%clk 0:00:00]} 33. Re8 {[%clk 0:00:00]}  Rc7 {[%clk 0:00:00]} 34. Re5 {[%clk 0:00:00]}  Kg2 {[%clk 0:00:00]} 35. a4 {[%clk 0:00:00]}  Rdc6 {[%clk 0:00:00]} 36. d5 {[%clk 0:00:00]}  Rd6 {[%clk 0:00:00]} 37. Kd4 {[%clk 0:00:00]}  Rc5 {[%clk 0:00:00]} 38. Re6 {[%clk 0:00:00]}  Rd7 {[%clk 0:00:00]} 39. Rxg6 {[%clk 0:00:00]} 1-0


[Site "https://www.chess.com"]

[Event "Titled Tuesday Blitz August 16 Late 2022"]
[White "Solon, Nathan"]
[Black "Michalski, Olaf"]
[WhiteFideId "2017229"]
[BlackFideId "1106740"]
[WhiteElo "2306"]
[BlackElo "1937"]
[Result "1-0"]
[Round "02"]
[TimeControl "180+1"]
[Date "2022.08.18"]
[WhiteClock "0:00:00"]
[BlackClock "0:00:00"]

1. e4 {[%clk 0:00:00]}  c5 {[%clk 0:00:00]} 2. Nf3 {[%clk 0:00:00]}  a6 {[%clk 0:00:00]} 3. d3 {[%clk 0:00:00]}  e6 {[%clk 0:00:00]} 4. g3 {[%clk 0:00:00]}  d5 {[%clk 0:00:00]} 5. Qe2 {[%clk 0:00:00]}  d4 {[%clk 0:00:00]} 6. Bg2 {[%clk 0:00:00]}  Nc6 {[%clk 0:00:00]} 7. O-O {[%clk 0:00:00]}  e5 {[%clk 0:00:00]} 8. a4 {[%clk 0:00:00]}  Nf6 {[%clk 0:00:00]} 9. Na3 {[%clk 0:00:00]}  b5 {[%clk 0:00:00]} 10. axb5 {[%clk 0:00:00]}  axb5 {[%clk 0:00:00]} 11. Bd2 {[%clk 0:00:00]}  Rb8 {[%clk 0:00:00]} 12. c3 {[%clk 0:00:00]}  dxc3 {[%clk 0:00:00]} 13. bxc3 {[%clk 0:00:00]}  Be7 {[%clk 0:00:00]} 14. Rfb1 {[%clk 0:00:00]}  b4 {[%clk 0:00:00]} 15. Nc4 {[%clk 0:00:00]}  Qc7 {[%clk 0:00:00]} 16. cxb4 {[%clk 0:00:00]}  cxb4 {[%clk 0:00:00]} 17. Rc1 {[%clk 0:00:00]}  b3 {[%clk 0:00:00]} 18. Bc3 {[%clk 0:00:00]}  Qb7 {[%clk 0:00:00]} 19. Nfxe5 {[%clk 0:00:00]}  Nxe5 {[%clk 0:00:00]} 20. Bxe5 {[%clk 0:00:00]}  Ra8 {[%clk 0:00:00]} 21. Rxa8 {[%clk 0:00:00]}  Qxa8 {[%clk 0:00:00]} 22. Nb6 {[%clk 0:00:00]} 1-0


[Site "https://www.chess.com"]

[Event "Titled Tuesday Blitz August 16 Late 2022"]
[White "Stanisz, Patryk"]
[Black "Baches Garcia, Guillermo"]
[WhiteFideId "1123106"]
[BlackFideId "2209764"]
[WhiteElo "1833"]
[BlackElo "2326"]
[Result "0-1"]
[Round "02"]
[TimeControl "180+1"]
[Date "2022.08.18"]
[WhiteClock "0:00:00"]
[BlackClock "0:00:00"]

1. d4 {[%clk 0:00:00]}  Nf6 {[%clk 0:00:00]} 2. c4 {[%clk 0:00:00]}  e6 {[%clk 0:00:00]} 3. Nc3 {[%clk 0:00:00]}  d5 {[%clk 0:00:00]} 4. Nf3 {[%clk 0:00:00]}  c5 {[%clk 0:00:00]} 5. e3 {[%clk 0:00:00]}  Nc6 {[%clk 0:00:00]} 6. a3 {[%clk 0:00:00]}  a6 {[%clk 0:00:00]} 7. cxd5 {[%clk 0:00:00]}  exd5 {[%clk 0:00:00]} 8. Bd3 {[%clk 0:00:00]}  Bd6 {[%clk 0:00:00]} 9. dxc5 {[%clk 0:00:00]}  Bxc5 {[%clk 0:00:00]} 10. O-O {[%clk 0:00:00]}  O-O {[%clk 0:00:00]} 11. b4 {[%clk 0:00:00]}  Ba7 {[%clk 0:00:00]} 12. Bb2 {[%clk 0:00:00]}  Bg4 {[%clk 0:00:00]} 13. Be2 {[%clk 0:00:00]}  Rc8 {[%clk 0:00:00]} 14. h3 {[%clk 0:00:00]}  Bh5 {[%clk 0:00:00]} 15. Rc1 {[%clk 0:00:00]}  Qd6 {[%clk 0:00:00]} 16. Nd4 {[%clk 0:00:00]}  Bb8 {[%clk 0:00:00]} 17. g3 {[%clk 0:00:00]}  Bg6 {[%clk 0:00:00]} 18. Bf3 {[%clk 0:00:00]}  Ne5 {[%clk 0:00:00]} 19. Bg2 {[%clk 0:00:00]}  Nd3 {[%clk 0:00:00]} 20. Ba1 {[%clk 0:00:00]}  Nxc1 {[%clk 0:00:00]} 21. Qxc1 {[%clk 0:00:00]}  Ne4 {[%clk 0:00:00]} 22. Nde2 {[%clk 0:00:00]}  Rc4 {[%clk 0:00:00]} 23. Qb2 {[%clk 0:00:00]}  Qf6 {[%clk 0:00:00]} 24. Nxd5 {[%clk 0:00:00]}  Qxb2 {[%clk 0:00:00]} 25. Ne7+ {[%clk 0:00:00]}  Kh8 {[%clk 0:00:00]} 26. Bxb2 {[%clk 0:00:00]}  Rc2 {[%clk 0:00:00]} 27. Nxg6+ {[%clk 0:00:00]}  fxg6 {[%clk 0:00:00]} 28. Bd4 {[%clk 0:00:00]}  Nd2 {[%clk 0:00:00]} 29. Rd1 {[%clk 0:00:00]}  b5 {[%clk 0:00:00]} 30. Nf4 {[%clk 0:00:00]}  Rfc8 {[%clk 0:00:00]} 31. Bc5 {[%clk 0:00:00]}  Bxf4 {[%clk 0:00:00]} 32. exf4 {[%clk 0:00:00]}  h6 {[%clk 0:00:00]} 33. Bb7 {[%clk 0:00:00]}  Rd8 {[%clk 0:00:00]} 34. Kg2 {[%clk 0:00:00]}  Kh7 {[%clk 0:00:00]} 35. Bxa6 {[%clk 0:00:00]}  Re8 {[%clk 0:00:00]} 36. Bxb5 {[%clk 0:00:00]}  Rd8 {[%clk 0:00:00]} 0-1


[Site "https://www.chess.com"]

[Event "Titled Tuesday Blitz August 16 Late 2022"]
[White "Stanojoski, Zvonko"]
[Black "Hajiyev, Kanan"]
[WhiteFideId "15000257"]
[BlackFideId "13404148"]
[WhiteElo "2364"]
[BlackElo "2118"]
[Result "0-1"]
[Round "02"]
[TimeControl "180+1"]
[Date "2022.08.18"]
[WhiteClock "0:00:00"]
[BlackClock "0:00:00"]

1. e4 {[%clk 0:00:00]}  c6 {[%clk 0:00:00]} 2. d4 {[%clk 0:00:00]}  d5 {[%clk 0:00:00]} 3. Nd2 {[%clk 0:00:00]}  a6 {[%clk 0:00:00]} 4. Ngf3 {[%clk 0:00:00]}  Bg4 {[%clk 0:00:00]} 5. c3 {[%clk 0:00:00]}  e6 {[%clk 0:00:00]} 6. h3 {[%clk 0:00:00]}  Bh5 {[%clk 0:00:00]} 7. Be2 {[%clk 0:00:00]}  Nf6 {[%clk 0:00:00]} 8. exd5 {[%clk 0:00:00]}  cxd5 {[%clk 0:00:00]} 9. O-O {[%clk 0:00:00]}  Nc6 {[%clk 0:00:00]} 10. Ne5 {[%clk 0:00:00]}  Bxe2 {[%clk 0:00:00]} 11. Qxe2 {[%clk 0:00:00]}  Bd6 {[%clk 0:00:00]} 12. Nxc6 {[%clk 0:00:00]}  bxc6 {[%clk 0:00:00]} 13. Nf3 {[%clk 0:00:00]}  O-O {[%clk 0:00:00]} 14. Bg5 {[%clk 0:00:00]}  h6 {[%clk 0:00:00]} 15. Bxf6 {[%clk 0:00:00]}  Qxf6 {[%clk 0:00:00]} 16. b4 {[%clk 0:00:00]}  a5 {[%clk 0:00:00]} 17. a3 {[%clk 0:00:00]}  Ra7 {[%clk 0:00:00]} 18. Rab1 {[%clk 0:00:00]}  axb4 {[%clk 0:00:00]} 19. axb4 {[%clk 0:00:00]}  Ra3 {[%clk 0:00:00]} 20. Rfc1 {[%clk 0:00:00]}  Rfa8 {[%clk 0:00:00]} 21. g3 {[%clk 0:00:00]}  Ra2 {[%clk 0:00:00]} 22. Qe3 {[%clk 0:00:00]}  R8a3 {[%clk 0:00:00]} 23. h4 {[%clk 0:00:00]}  Qg6 {[%clk 0:00:00]} 24. Ne5 {[%clk 0:00:00]}  Bxe5 {[%clk 0:00:00]} 25. dxe5 {[%clk 0:00:00]}  Qg4 {[%clk 0:00:00]} 26. Qf4 {[%clk 0:00:00]}  Qxf4 {[%clk 0:00:00]} 27. gxf4 {[%clk 0:00:00]}  Kh7 {[%clk 0:00:00]} 28. b5 {[%clk 0:00:00]}  cxb5 {[%clk 0:00:00]} 29. Rxb5 {[%clk 0:00:00]}  Kg6 {[%clk 0:00:00]} 30. Kg2 {[%clk 0:00:00]}  Kf5 {[%clk 0:00:00]} 31. Kg3 {[%clk 0:00:00]}  h5 {[%clk 0:00:00]} 32. Rb7 {[%clk 0:00:00]}  Ra7 {[%clk 0:00:00]} 33. Rcb1 {[%clk 0:00:00]}  R2a3 {[%clk 0:00:00]} 34. f3 {[%clk 0:00:00]}  f6 {[%clk 0:00:00]} 35. Rxa7 {[%clk 0:00:00]}  Rxa7 {[%clk 0:00:00]} 36. exf6 {[%clk 0:00:00]}  gxf6 {[%clk 0:00:00]} 37. Rb4 {[%clk 0:00:00]}  Rg7+ {[%clk 0:00:00]} 38. Kf2 {[%clk 0:00:00]}  Rc7 {[%clk 0:00:00]} 39. Rb3 {[%clk 0:00:00]}  Kxf4 {[%clk 0:00:00]} 40. Rb4+ {[%clk 0:00:00]}  Rc4 {[%clk 0:00:00]} 41. Rb6 {[%clk 0:00:00]}  Kf5 {[%clk 0:00:00]} 42. Rb3 {[%clk 0:00:00]}  Rxh4 {[%clk 0:00:00]} 43. Ke3 {[%clk 0:00:00]}  Rc4 {[%clk 0:00:00]} 44. Kd3 {[%clk 0:00:00]}  h4 {[%clk 0:00:00]} 45. Rb8 {[%clk 0:00:00]}  Rf4 {[%clk 0:00:00]} 46. Ke3 {[%clk 0:00:00]}  Rc4 {[%clk 0:00:00]} 47. Kd3 {[%clk 0:00:00]}  Kf4 {[%clk 0:00:00]} 48. Rf8 {[%clk 0:00:00]}  f5 {[%clk 0:00:00]} 49. Rf6 {[%clk 0:00:00]}  e5 {[%clk 0:00:00]} 50. Rd6 {[%clk 0:00:00]}  Rc5 {[%clk 0:00:00]} 51. Rh6 {[%clk 0:00:00]}  Kg3 {[%clk 0:00:00]} 52. Rh5 {[%clk 0:00:00]}  e4+ {[%clk 0:00:00]} 53. Kd4 {[%clk 0:00:00]}  Rc4+ {[%clk 0:00:00]} 54. Kxd5 {[%clk 0:00:00]}  Rxc3 {[%clk 0:00:00]} 55. fxe4 {[%clk 0:00:00]}  fxe4 {[%clk 0:00:00]} 56. Kxe4 {[%clk 0:00:00]}  h3 {[%clk 0:00:00]} 57. Rg5+ {[%clk 0:00:00]}  Kf2 {[%clk 0:00:00]} 58. Rh5 {[%clk 0:00:00]}  Kg2 {[%clk 0:00:00]} 59. Kf4 {[%clk 0:00:00]}  Rc4+ {[%clk 0:00:00]} 60. Ke3 {[%clk 0:00:00]}  Rg4 {[%clk 0:00:00]} 61. Ra5 {[%clk 0:00:00]}  h2 {[%clk 0:00:00]} 62. Ra2+ {[%clk 0:00:00]}  Kh3 {[%clk 0:00:00]} 63. Ra1 {[%clk 0:00:00]}  Rg1 {[%clk 0:00:00]} 64. Ra8 {[%clk 0:00:00]}  h1=Q {[%clk 0:00:00]} 65. Rh8+ {[%clk 0:00:00]}  Kg2 {[%clk 0:00:00]} 66. Rg8+ {[%clk 0:00:00]}  Kf1 {[%clk 0:00:00]} 67. Rf8+ {[%clk 0:00:00]}  Ke1 {[%clk 0:00:00]} 68. Rf3 {[%clk 0:00:00]}  Rf1 {[%clk 0:00:00]} 69. Rg3 {[%clk 0:00:00]}  Qg1+ {[%clk 0:00:00]} 70. Rxg1 {[%clk 0:00:00]}  Rxg1 {[%clk 0:00:00]} 0-1


[Site "https://www.chess.com"]

[Event "Titled Tuesday Blitz August 16 Late 2022"]
[White "Swiercz, Dariusz"]
[Black "Yedidia, Daniel"]
[WhiteFideId "1126881"]
[BlackFideId "30905907"]
[WhiteElo "2627"]
[BlackElo "2054"]
[Result "1-0"]
[Round "02"]
[TimeControl "180+1"]
[Date "2022.08.18"]
[WhiteClock "0:00:00"]
[BlackClock "0:00:00"]

1. d4 {[%clk 0:00:00]}  Nf6 {[%clk 0:00:00]} 2. c4 {[%clk 0:00:00]}  e6 {[%clk 0:00:00]} 3. Nf3 {[%clk 0:00:00]}  b6 {[%clk 0:00:00]} 4. e3 {[%clk 0:00:00]}  Bb7 {[%clk 0:00:00]} 5. Bd3 {[%clk 0:00:00]}  d5 {[%clk 0:00:00]} 6. cxd5 {[%clk 0:00:00]}  exd5 {[%clk 0:00:00]} 7. O-O {[%clk 0:00:00]}  Bd6 {[%clk 0:00:00]} 8. Ne5 {[%clk 0:00:00]}  O-O {[%clk 0:00:00]} 9. Nc3 {[%clk 0:00:00]}  Nbd7 {[%clk 0:00:00]} 10. f4 {[%clk 0:00:00]}  Ne4 {[%clk 0:00:00]} 11. Nxe4 {[%clk 0:00:00]}  dxe4 {[%clk 0:00:00]} 12. Bc4 {[%clk 0:00:00]}  Qe7 {[%clk 0:00:00]} 13. Bd2 {[%clk 0:00:00]}  Rac8 {[%clk 0:00:00]} 14. Qa4 {[%clk 0:00:00]}  Bxe5 {[%clk 0:00:00]} 15. fxe5 {[%clk 0:00:00]}  a6 {[%clk 0:00:00]} 16. Qb3 {[%clk 0:00:00]}  b5 {[%clk 0:00:00]} 17. Bd5 {[%clk 0:00:00]}  Bxd5 {[%clk 0:00:00]} 18. Qxd5 {[%clk 0:00:00]}  Nb6 {[%clk 0:00:00]} 19. Qxe4 {[%clk 0:00:00]}  f5 {[%clk 0:00:00]} 20. Rxf5 {[%clk 0:00:00]}  Rxf5 {[%clk 0:00:00]} 21. Qxf5 {[%clk 0:00:00]}  Rf8 {[%clk 0:00:00]} 22. Qd3 {[%clk 0:00:00]}  Nc4 {[%clk 0:00:00]} 23. b3 {[%clk 0:00:00]}  Nb6 {[%clk 0:00:00]} 24. Rf1 {[%clk 0:00:00]}  h6 {[%clk 0:00:00]} 25. Rxf8+ {[%clk 0:00:00]}  Qxf8 {[%clk 0:00:00]} 26. Ba5 {[%clk 0:00:00]}  Nd5 {[%clk 0:00:00]} 27. e4 {[%clk 0:00:00]}  Nf4 {[%clk 0:00:00]} 28. Qf3 {[%clk 0:00:00]}  c6 {[%clk 0:00:00]} 29. Bd2 {[%clk 0:00:00]}  Ne6 {[%clk 0:00:00]} 30. Qxf8+ {[%clk 0:00:00]}  Kxf8 {[%clk 0:00:00]} 31. Be3 {[%clk 0:00:00]}  Ke7 {[%clk 0:00:00]} 32. d5 {[%clk 0:00:00]}  Nd8 {[%clk 0:00:00]} 33. Bc5+ {[%clk 0:00:00]}  Ke8 {[%clk 0:00:00]} 34. e6 {[%clk 0:00:00]}  Nb7 {[%clk 0:00:00]} 35. dxc6 {[%clk 0:00:00]}  Nxc5 {[%clk 0:00:00]} 36. c7 {[%clk 0:00:00]}  Nxe6 {[%clk 0:00:00]} 37. c8=Q+ {[%clk 0:00:00]} 1-0


[Site "https://www.chess.com"]